fUST/lending_fUST_20250825
["ID","MTS","AMOUNT","RATE_DAILY","PERIOD"]
[381149524,1756081846431,-151.0,0.000484,120]
[381149525,1756081846441,-151.0,0.000484,120]
[381149526,1756081846452,-151.0,0.000484,120]
[381149527,1756081846462,-151.0,0.000484,120]
[381149528,1756081846472,-269.512267,0.000484,15]
[381149529,1756081846482,-269.512267,0.000484,15]
[381149530,1756081846492,-269.512267,0.000484,15]
[381149531,1756081846502,-269.512267,0.000484,15]
[381149532,1756081846513,-151.0,0.000484,120]
[381149533,1756081846522,-151.0,0.000484,120]
[381149534,1756081846532,-151.0,0.000484,120]
[381149535,1756081846542,-151.0,0.000484,120]
[381149536,1756081846552,-151.0,0.000484,120]
[381149537,1756081846563,-223.340255,0.000484,120]
[381149538,1756081846573,-569.586279,0.000484,120]
[381149539,1756081846582,-569.586279,0.000484,120]
[381149540,1756081846592,-569.586279,0.000484,120]
[381149541,1756081846602,-1524.971323,0.000484,120]
[381149542,1756081846612,-569.586279,0.000484,120]
[381149543,1756081846622,-1524.971323,0.000484,120]
[381149544,1756081846632,-1524.971323,0.000484,120]
[381149545,1756081846643,-1524.971323,0.000484,120]
[381149546,1756081846653,-6011.96209197,0.000484,120]
[381149547,1756081846665,-19991.58950788,0.000484,120]
[381149548,1756081846684,-935.5364121,0.000484,120]
[381149549,1756081945898,318.16835916,0.0002249,2]
[381149550,1756081945996,318.16835916,0.00025943,4]
[381149551,1756081946225,477.25253898,0.00025943,4]
[381149552,1756081947221,-190.46142527,0.00024216,2]
[381149553,1756081950256,-127.70693389,0.00024216,2]
[381149554,1756082077028,2000.0,0.00030754,30]
[381149555,1756082119652,254.53468728,0.0002249,2]
[381149556,1756082119773,445.43570292,0.0002249,2]
[381149557,1756082120470,-158.26858102,0.00024216,2]
[381149558,1756082123250,-96.26610626,0.00024216,2]
[381149566,1756082280109,517.94,0.00018991,120]
[381149567,1756082280587,517.94,0.00018991,120]
[381149568,1756082290268,327.47228288,0.00020763,2]
[381149569,1756082290311,327.47228288,0.0002249,2]
[381149570,1756082290393,245.60421218,0.00025943,4]
[381149571,1756082472506,327.47228288,0.00020763,2]
[381149572,1756082490013,164.616186,0.00013699,2]
[381149573,1756082490255,164.616186,0.00020187,2]
[381149574,1756082655139,260.82975024,0.00020763,2]
[381149575,1756082655187,228.22603168,0.0002249,2]
[381149576,1756082740912,529.17068775,0.00027,3]
[381149577,1756082749109,-420.12533766,0.00025205,2]
[381149578,1756082758849,417.15472785,0.00027,3]
[381149579,1756082835116,-167.80782557,0.00025205,2]
[381149580,1756082835139,-301.80560079,0.00026576,2]
[381149581,1756082835160,-164.616186,0.00026676,2]
[381149582,1756082835181,-3999.0,0.000305,120]
[381149583,1756082835202,-187.07854562,0.00030655,2]
[381149584,1756082835223,-155.0,0.00031,120]
[381149585,1756082835244,-215.99145658,0.0003154,2]
[381149586,1756082835264,-160.0,0.0003154,2]
[381149587,1756082835284,-164.616186,0.00033165,2]
[381149588,1756082835303,-151.0,0.00035,60]
[381149589,1756082835321,-400.0,0.00035259,2]
[381149590,1756082835344,-157.710129,0.00035397,2]
[381149591,1756082835363,-196.505465,0.00037675,2]
[381149592,1756082835382,-155.0,0.000378,120]
[381149593,1756082835401,-187.07854562,0.00038565,2]
[381149594,1756082835421,-164.616186,0.00039654,2]
[381149595,1756082835441,-496.0,0.0004345,120]
[381149596,1756082835460,-274.44,0.0004345,120]
[381149597,1756082835480,-274.44,0.0004345,120]
[381149598,1756082835498,-274.44,0.0004345,120]
[381149599,1756082835518,-274.44,0.0004345,120]
[381149600,1756082835538,-274.44,0.0004345,120]
[381149601,1756082835558,-274.44,0.0004345,120]
[381149602,1756082835577,-274.4,0.0004345,120]
[381149603,1756082835601,-496.0,0.0004355,120]
[381149604,1756082835621,-155.0,0.000446,120]
[381149605,1756082835642,-199.999999,0.00045,120]
[381149606,1756082835662,-630.30200911,0.00046142,6]
[381149607,1756082836091,-1187.50038974,0.00046142,6]
[381149608,1756082840111,-199.0,0.000304,120]
[381149609,1756082840133,-1182.19760115,0.00046142,6]
[381149610,1756082840154,-164.616186,0.00046143,2]
[381149611,1756082840176,-761.80698244,0.00046475,28]
[381149612,1756082840196,-178.73291862,0.00046475,2]
[381149613,1756082840216,-187.07854562,0.00046475,2]
[381149614,1756082840235,-1000.55433446,0.00046574,7]
[381149615,1756082840258,-500.0,0.00046574,120]
[381149616,1756082840278,-204.08950984,0.00046574,2]
[381149617,1756082840298,-390.67474428,0.00046574,7]
[381149618,1756082840317,-311.23122387,0.00046574,120]
[381149619,1756082840340,-500.0,0.00046574,120]
[381149620,1756082840361,-479.96082911,0.00046574,120]
[381149621,1756082840381,-371.9642711,0.00046574,120]
[381149622,1756082840400,-500.0,0.00046574,120]
[381149623,1756082840420,-529.17068775,0.00046574,120]
[381149624,1756082840440,-417.15472785,0.00046574,120]
[381149625,1756082840460,-160.0,0.00046574,120]
[381149626,1756082840480,-500.0,0.00046574,120]
[381149627,1756082840500,-1000.0,0.00046575,120]
[381149628,1756082840520,-6245.14,0.00046575,120]
[381149629,1756082840540,-6245.14,0.00046575,120]
[381149630,1756082840560,-2660.38875033,0.00046575,120]
[381149631,1756082956127,-199.0,0.000304,120]
[381149632,1756082956155,-166.0,0.00031,120]
[381149633,1756082956182,-166.0,0.000395,120]
[381149634,1756082959754,199.0,0.000303,120]
[381149635,1756082962978,199.0,0.000303,120]
[381149636,1756082964820,844.67759735,0.00028,3]
[381149637,1756082995557,417.52468797,0.0004,120]
[381149904,1756083038142,-259.0,0.00030755,10]
[381149905,1756083038152,-1611.8007258,0.00045141,2]
[381149906,1756083038162,-11867.1264488,0.00045174,2]
[381149907,1756083038172,-1771.68288782,0.00046,60]
[381149908,1756083038183,-453.68345598,0.00046342,60]
[381149909,1756083038192,-193.59978248,0.00046475,2]
[381149910,1756083038202,-5906.0,0.00046575,120]
[381149911,1756083038212,-5906.0,0.00046575,120]
[381149912,1756083038222,-5906.0,0.00046575,120]
[381149913,1756083038231,-844.67759735,0.00046575,120]
[381149914,1756083038240,-5906.0,0.00046575,120]
[381149915,1756083038250,-5906.0,0.00046575,120]
[381149916,1756083038259,-5906.0,0.00046575,120]
[381149917,1756083038274,-300.0,0.00046575,120]
[381149918,1756083038283,-1021.15,0.00046602,120]
[381149919,1756083038293,-1919.88184693,0.0004669,120]
[381149920,1756083038302,-156.957592,0.00046814,2]
[381149921,1756083038311,-5906.0,0.00046999,120]
[381149922,1756083038321,-169.08,0.00047,14]
[381149923,1756083038330,-2000.0,0.00047017,6]
[381149924,1756083038339,-761.80698239,0.00047062,28]
[381149925,1756083038348,-199.0,0.00047397,30]
[381149926,1756083038358,-300.0,0.00047505,60]
[381149927,1756083038367,-300.0,0.00047505,60]
[381149928,1756083038376,-300.0,0.00047505,60]
[381149929,1756083038385,-300.0,0.00047505,60]
[381149930,1756083038394,-300.0,0.00047505,60]
[381149931,1756083038404,-300.0,0.00047505,60]
[381149932,1756083038413,-300.0,0.00047505,60]
[381149933,1756083038424,-300.0,0.00047505,60]
[381149934,1756083038434,-761.80698239,0.00047649,28]
[381149935,1756083038443,-3000.0,0.00047666,6]
[381149936,1756083038453,-500.0,0.0004767,60]
[381149937,1756083038462,-500.0,0.00047686,30]
[381149938,1756083038471,-160.0,0.00047863,2]
[381149939,1756083038481,-787.16,0.0004787,10]
[381149940,1756083038490,-1150.69,0.0004787,10]
[381149941,1756083038500,-33991.3166402,0.0004788,4]
[381149942,1756083038509,-191.39146646,0.0004788,2]
[381149943,1756083038521,-2098.52449103,0.0004788,2]
[381149944,1756083038531,-500.0,0.00047889,120]
[381149945,1756083038540,-221.40692916,0.00047889,120]
[381149946,1756083038549,-500.0,0.00047889,120]
[381149947,1756083038558,-500.0,0.00047889,120]
[381149948,1756083038568,-500.0,0.00047889,120]
[381149949,1756083038577,-500.0,0.00047889,120]
[381149950,1756083038587,-500.0,0.00047889,120]
[381149951,1756083038596,-500.0,0.00047889,120]
[381149952,1756083038604,-500.0,0.00047889,120]
[381149953,1756083038614,-500.0,0.00047889,120]
[381149954,1756083038623,-500.0,0.00047889,120]
[381149955,1756083038633,-173.21015529,0.00047889,120]
[381149956,1756083038643,-88888.0,0.0004789,120]
[381149957,1756083038652,-191.39146646,0.0004789,2]
[381149958,1756083038661,-7675.72100964,0.0004789,2]
[381149959,1756083038671,-151.0,0.000479,23]
[381149960,1756083038680,-33991.3166402,0.00047949,4]
[381149961,1756083038689,-33991.3166402,0.0004797,4]
[381149962,1756083038698,-330.62878384,0.00047973,10]
[381149963,1756083038708,-500.0,0.00047973,10]
[381149964,1756083038717,-500.0,0.00047973,10]
[381149965,1756083038726,-503.10325392,0.00047973,10]
[381149966,1756083038735,-500.0,0.00047973,7]
[381149967,1756083038744,-310.8305346,0.00047973,10]
[381149968,1756083038754,-500.51423272,0.00047973,10]
[381149969,1756083038763,-500.0,0.00047973,10]
[381149970,1756083038774,-500.0,0.00047973,10]
[381149971,1756083038782,-278.89879357,0.00047973,7]
[381149972,1756083038791,-394.78644593,0.00047973,10]
[381149973,1756083038800,-163.87538169,0.00047973,10]
[381149974,1756083038809,-500.0,0.00047973,10]
[381149975,1756083038819,-500.0,0.00047973,10]
[381149976,1756083038828,-500.0,0.00047973,10]
[381149977,1756083038837,-501.69250842,0.00047973,10]
[381149978,1756083038847,-500.0,0.00047973,10]
[381149979,1756083038856,-500.0,0.00047973,10]
[381149980,1756083038866,-200.0,0.00047973,10]
[381149981,1756083038875,-500.06002785,0.00047973,10]
[381149982,1756083038884,-500.0,0.00047973,10]
[381149983,1756083038893,-500.0,0.00047973,10]
[381149984,1756083038903,-5906.0,0.00047979,120]
[381149985,1756083038913,-5906.0,0.00047979,120]
[381149986,1756083038922,-5906.0,0.00047979,120]
[381149987,1756083038932,-5906.0,0.00047979,120]
[381149988,1756083038942,-33991.3166402,0.00047979,4]
[381149989,1756083038951,-135965.266561,0.0004798,4]
[381149990,1756083039177,-546.62,0.0004798,30]
[381149991,1756083039188,-455.51,0.0004798,30]
[381149992,1756083039198,-379.59,0.0004798,30]
[381149993,1756083039207,-316.33,0.0004798,30]
[381149994,1756083039217,-263.61,0.0004798,30]
[381149995,1756083039226,-219.67,0.0004798,30]
[381149996,1756083039235,-183.06,0.0004798,30]
[381149997,1756083039244,-152.55,0.0004798,30]
[381149998,1756083039253,-762.78,0.0004798,30]
[381149999,1756083039263,-5906.0,0.00047988,120]
[381150000,1756083039274,-5906.0,0.00047989,120]
[381150001,1756083039284,-5906.0,0.00047989,120]
[381150002,1756083039293,-5906.0,0.00047989,120]
[381150003,1756083039303,-5906.0,0.00047989,120]
[381150004,1756083039312,-5906.0,0.00047989,120]
[381150005,1756083039321,-5906.0,0.00047989,120]
[381150006,1756083039330,-5906.0,0.00047989,120]
[381150007,1756083039340,-5906.0,0.00047989,120]
[381150008,1756083039349,-5906.0,0.00047989,120]
[381150009,1756083039359,-5906.0,0.00047989,120]
[381150010,1756083039368,-5906.0,0.00047989,120]
[381150011,1756083039377,-5906.00241613,0.00047989,120]
[381150012,1756083039387,-237546.42,0.0004799,120]
[381150013,1756083039397,-1000000.0,0.0004799,120]
[381150014,1756083039406,-151.0,0.0004799,120]
[381150015,1756083039416,-162.425812,0.0004799,120]
[381150016,1756083039426,-151.0,0.0004799,120]
[381150017,1756083039436,-151.0,0.0004799,120]
[381150018,1756083039445,-151.0,0.0004799,120]
[381150019,1756083039455,-151.0,0.0004799,120]
[381150020,1756083039464,-151.0,0.0004799,120]
[381150021,1756083039473,-151.0,0.0004799,120]
[381150022,1756083039483,-151.0,0.0004799,120]
[381150023,1756083039492,-151.0,0.0004799,120]
[381150024,1756083039502,-151.0,0.0004799,120]
[381150025,1756083039513,-151.0,0.0004799,120]
[381150026,1756083039526,-151.0,0.0004799,120]
[381150027,1756083039535,-151.0,0.0004799,120]
[381150028,1756083039545,-151.0,0.0004799,120]
[381150029,1756083039555,-151.0,0.0004799,120]
[381150030,1756083039564,-151.0,0.0004799,120]
[381150031,1756083039574,-151.0,0.0004799,120]
[381150032,1756083039583,-151.0,0.0004799,120]
[381150033,1756083039593,-151.0,0.0004799,120]
[381150034,1756083039602,-151.0,0.0004799,120]
[381150035,1756083039612,-151.0,0.0004799,120]
[381150036,1756083039622,-153.007926,0.0004799,120]
[381150037,1756083039631,-153.007926,0.0004799,120]
[381150038,1756083039641,-153.007926,0.0004799,120]
[381150039,1756083039651,-153.007926,0.0004799,120]
[381150040,1756083039660,-163.353797,0.0004799,120]
[381150042,1756083039670,-163.353797,0.0004799,120]
[381150044,1756083039679,-163.353797,0.0004799,120]
[381150046,1756083039689,-163.353797,0.0004799,120]
[381150047,1756083039699,-151.0,0.0004799,120]
[381150048,1756083039708,-151.0,0.0004799,120]
[381150049,1756083039718,-151.0,0.0004799,120]
[381150050,1756083039727,-151.0,0.0004799,120]
[381150051,1756083039736,-151.0,0.0004799,120]
[381150052,1756083039745,-241.736049,0.0004799,120]
[381150053,1756083039755,-151.0,0.0004799,120]
[381150054,1756083039764,-241.736049,0.0004799,120]
[381150055,1756083039775,-151.0,0.0004799,120]
[381150056,1756083039784,-151.0,0.0004799,120]
[381150057,1756083039794,-241.736049,0.0004799,120]
[381150058,1756083039803,-195.30278,0.0004799,120]
[381150059,1756083039812,-241.736049,0.0004799,120]
[381150060,1756083039823,-233.734865,0.0004799,120]
[381150061,1756083039833,-233.734865,0.0004799,120]
[381150062,1756083039842,-233.734865,0.0004799,120]
[381150063,1756083039855,-233.734865,0.0004799,120]
[381150064,1756083039865,-151.0,0.0004799,120]
[381150065,1756083039875,-151.0,0.0004799,120]
[381150066,1756083039891,-949.174368,0.0004799,120]
[381150067,1756083039902,-151.0,0.0004799,120]
[381150068,1756083039911,-949.174368,0.0004799,120]
[381150069,1756083039920,-949.174368,0.0004799,120]
[381150070,1756083039930,-151.0,0.0004799,120]
[381150071,1756083039939,-949.174368,0.0004799,120]
[381150072,1756083039949,-567.367118,0.0004799,120]
[381150073,1756083039959,-567.367118,0.0004799,120]
[381150074,1756083039969,-567.367118,0.0004799,120]
[381150075,1756083039978,-151.0,0.0004799,120]
[381150076,1756083039988,-567.367118,0.0004799,120]
[381150077,1756083039998,-151.0,0.0004799,120]
[381150078,1756083040007,-151.0,0.0004799,120]
[381150079,1756083040018,-151.0,0.0004799,120]
[381150080,1756083040028,-423.645617,0.0004799,120]
[381150081,1756083040037,-151.0,0.0004799,120]
[381150082,1756083040047,-151.0,0.0004799,120]
[381150083,1756083040056,-151.0,0.0004799,120]
[381150084,1756083040065,-423.645617,0.0004799,120]
[381150085,1756083040074,-423.645617,0.0004799,120]
[381150086,1756083040084,-423.645617,0.0004799,120]
[381150087,1756083040094,-402.399781,0.0004799,120]
[381150088,1756083040107,-151.0,0.0004799,14]
[381150089,1756083040117,-402.399781,0.0004799,120]
[381150090,1756083040126,-402.399781,0.0004799,120]
[381150091,1756083040136,-402.399781,0.0004799,120]
[381150092,1756083040147,-151.0,0.0004799,120]
[381150093,1756083040157,-566.895334,0.0004799,120]
[381150094,1756083040167,-566.895334,0.0004799,120]
[381150095,1756083040177,-566.895334,0.0004799,120]
[381150096,1756083040187,-151.0,0.0004799,120]
[381150098,1756083040196,-566.895334,0.0004799,120]
[381150099,1756083040205,-280.269937,0.0004799,120]
[381150102,1756083040215,-280.269937,0.0004799,120]
[381150104,1756083040224,-280.269937,0.0004799,120]
[381150106,1756083040234,-280.269937,0.0004799,120]
[381150108,1756083040244,-280.269937,0.0004799,120]
[381150110,1756083040253,-280.269937,0.0004799,120]
[381150112,1756083040262,-280.269937,0.0004799,120]
[381150114,1756083040273,-280.269937,0.0004799,120]
[381150116,1756083040282,-151.0,0.0004799,120]
[381150117,1756083040291,-151.0,0.0004799,120]
[381150119,1756083040300,-151.0,0.0004799,30]
[381150121,1756083040309,-151.0,0.0004799,30]
[381150123,1756083040319,-151.0,0.0004799,120]
[381150125,1756083040329,-151.0,0.0004799,120]
[381150126,1756083040338,-193.94553,0.0004799,120]
[381150128,1756083040347,-205.163984,0.0004799,120]
[381150130,1756083040357,-205.163984,0.0004799,120]
[381150132,1756083040366,-151.0,0.0004799,120]
[381150134,1756083040376,-151.0,0.0004799,120]
[381150136,1756083040386,-151.0,0.0004799,120]
[381150138,1756083040397,-151.0,0.0004799,120]
[381150140,1756083040407,-151.0,0.0004799,120]
[381150142,1756083040417,-151.0,0.0004799,120]
[381150144,1756083040427,-151.0,0.0004799,120]
[381150146,1756083040438,-151.0,0.0004799,120]
[381150148,1756083040448,-151.0,0.0004799,120]
[381150150,1756083040458,-151.0,0.0004799,120]
[381150152,1756083040469,-151.0,0.0004799,120]
[381150154,1756083040478,-151.0,0.0004799,120]
[381150156,1756083040488,-151.0,0.0004799,120]
[381150158,1756083040497,-151.0,0.0004799,120]
[381150160,1756083040507,-205.163984,0.0004799,120]
[381150162,1756083040517,-205.163984,0.0004799,120]
[381150164,1756083040528,-151.0,0.0004799,120]
[381150166,1756083040538,-151.0,0.0004799,120]
[381150168,1756083040548,-205.163984,0.0004799,120]
[381150170,1756083040558,-205.163984,0.0004799,120]
[381150172,1756083040567,-205.163984,0.0004799,120]
[381150174,1756083040577,-205.163984,0.0004799,120]
[381150176,1756083040587,-151.0,0.0004799,120]
[381150178,1756083040596,-317.461268,0.0004799,120]
[381150180,1756083040605,-317.461268,0.0004799,120]
[381150182,1756083040615,-317.461268,0.0004799,120]
[381150184,1756083040624,-317.461268,0.0004799,120]
[381150186,1756083040634,-317.461268,0.0004799,120]
[381150188,1756083040643,-317.461268,0.0004799,120]
[381150190,1756083040652,-317.461268,0.0004799,120]
[381150192,1756083040662,-317.461268,0.0004799,120]
[381150194,1756083040671,-151.0,0.0004799,120]
[381150196,1756083040681,-151.0,0.0004799,120]
[381150198,1756083040690,-504.563386,0.0004799,30]
[381150200,1756083040700,-504.563386,0.0004799,30]
[381150202,1756083040710,-151.0,0.0004799,120]
[381150204,1756083040719,-151.0,0.0004799,120]
[381150206,1756083040728,-504.563386,0.0004799,30]
[381150208,1756083040738,-504.563386,0.0004799,30]
[381150210,1756083040747,-504.563386,0.0004799,30]
[381150212,1756083040757,-504.563386,0.0004799,30]
[381150214,1756083040766,-504.563386,0.0004799,30]
[381150216,1756083040779,-504.563386,0.0004799,30]
[381150218,1756083040789,-151.0,0.0004799,120]
[381150221,1756083040801,-151.0,0.0004799,120]
[381150223,1756083040811,-151.0,0.0004799,120]
[381150225,1756083040820,-151.0,0.0004799,120]
[381150227,1756083040829,-151.0,0.0004799,120]
[381150229,1756083040839,-151.0,0.0004799,120]
[381150230,1756083040848,-151.0,0.0004799,120]
[381150231,1756083040857,-151.0,0.0004799,120]
[381150232,1756083040866,-151.0,0.0004799,120]
[381150233,1756083040875,-151.0,0.0004799,120]
[381150234,1756083040885,-231.066034,0.0004799,120]
[381150235,1756083040894,-215.609813,0.0004799,15]
[381150236,1756083040904,-215.609813,0.0004799,15]
[381150237,1756083040913,-215.609813,0.0004799,15]
[381150238,1756083040922,-215.609813,0.0004799,15]
[381150239,1756083040932,-215.609813,0.0004799,15]
[381150240,1756083040942,-215.609813,0.0004799,15]
[381150241,1756083040951,-215.609813,0.0004799,15]
[381150242,1756083040960,-215.609813,0.0004799,15]
[381150243,1756083040969,-151.0,0.0004799,120]
[381150244,1756083040979,-151.0,0.0004799,120]
[381150245,1756083040988,-151.0,0.0004799,120]
[381150246,1756083040998,-151.0,0.0004799,120]
[381150247,1756083041008,-151.0,0.0004799,120]
[381150248,1756083041017,-151.0,0.0004799,120]
[381150249,1756083041028,-151.0,0.0004799,120]
[381150250,1756083041037,-341.751767,0.0004799,120]
[381150251,1756083041047,-914.982793,0.0004799,120]
[381150252,1756083041057,-914.982793,0.0004799,120]
[381150253,1756083041066,-341.751767,0.0004799,120]
[381150254,1756083041076,-914.982793,0.0004799,120]
[381150255,1756083041085,-341.751767,0.0004799,120]
[381150256,1756083041096,-914.982793,0.0004799,120]
[381150257,1756083041108,-341.751767,0.0004799,120]
[381150258,1756083041118,-914.982793,0.0004799,120]
[381150259,1756083041128,-914.982793,0.0004799,120]
[381150260,1756083041138,-341.751767,0.0004799,120]
[381150261,1756083041149,-341.751767,0.0004799,120]
[381150262,1756083041159,-341.751767,0.0004799,120]
[381150263,1756083041168,-914.982793,0.0004799,120]
[381150264,1756083041179,-341.751767,0.0004799,120]
[381150265,1756083041189,-914.982793,0.0004799,120]
[381150266,1756083041198,-151.0,0.0004799,30]
[381150267,1756083041208,-151.0,0.0004799,30]
[381150268,1756083041217,-16435.18177536,0.00048,120]
[381150269,1756083041233,-43544.38575774,0.00048,120]
[381150270,1756083041242,-56180.72182306,0.00048,120]
[381150271,1756083041254,-4193.11761938,0.00048,120]
[381150304,1756083041764,-2743.21125694,0.00048,120]
[381150306,1756083041778,-9380.0,0.00048,120]
[381150374,1756083043071,-131.94448775,0.0004799,120]
[381150375,1756083043084,-19.05551225,0.0004799,120]
[381150376,1756083043094,-271.30149468,0.00048,120]
[381150378,1756083044319,-151.0,0.00047395,60]
[381150379,1756083044329,-191.0,0.00047395,60]
[381150380,1756083044338,-199.0,0.0004777,10]
[381150381,1756083044348,-500.0,0.00047889,120]
[381150382,1756083044357,-9420.91978325,0.00048,120]
[381150383,1756083044367,-169.08,0.00048,14]
[381150384,1756083044377,-151.0,0.00048,120]
[381150385,1756083044386,-151.0,0.00048,120]
[381150386,1756083044395,-151.0,0.00048,120]
[381150388,1756083044405,-151.0,0.00048,120]
[381150389,1756083044414,-151.0,0.00048,120]
[381150391,1756083044423,-151.0,0.00048,120]
[381150392,1756083044432,-151.0,0.00048,120]
[381150394,1756083044442,-151.0,0.00048,120]
[381150395,1756083044451,-183.054358,0.00048,120]
[381150397,1756083044460,-151.0,0.00048,120]
[381150398,1756083044469,-151.0,0.00048,120]
[381150399,1756083044478,-151.0,0.00048,120]
[381150400,1756083044488,-151.0,0.00048,120]
[381150402,1756083044498,-151.0,0.00048,120]
[381150403,1756083044507,-151.0,0.00048,120]
[381150404,1756083044517,-151.0,0.00048,120]
[381150405,1756083044528,-151.45715,0.00048,120]
[381150406,1756083044537,-151.0,0.00048,120]
[381150407,1756083044547,-151.0,0.00048,120]
[381150408,1756083044556,-151.0,0.00048,120]
[381150409,1756083044565,-153.007926,0.00048,120]
[381150410,1756083044575,-153.007926,0.00048,120]
[381150412,1756083044584,-153.007926,0.00048,120]
[381150413,1756083044593,-153.007926,0.00048,120]
[381150414,1756083044603,-163.353797,0.00048,120]
[381150416,1756083044612,-163.353797,0.00048,120]
[381150417,1756083044623,-163.353797,0.00048,120]
[381150418,1756083044634,-163.353797,0.00048,120]
[381150419,1756083044643,-151.000001,0.00048,120]
[381150420,1756083044653,-151.0,0.00048,120]
[381150421,1756083044662,-151.0,0.00048,120]
[381150422,1756083044672,-151.0,0.00048,120]
[381150423,1756083044681,-241.736049,0.00048,120]
[381150424,1756083044690,-182.328358,0.00048,120]
[381150425,1756083044699,-241.736049,0.00048,120]
[381150426,1756083044709,-151.0,0.00048,120]
[381150427,1756083044718,-241.736049,0.00048,120]
[381150428,1756083044727,-241.736049,0.00048,120]
[381150429,1756083044744,-233.734865,0.00048,120]
[381150430,1756083044753,-233.734865,0.00048,120]
[381150431,1756083044763,-233.734865,0.00048,120]
[381150432,1756083044772,-233.734865,0.00048,120]
[381150433,1756083044782,-151.0,0.00048,120]
[381150434,1756083044791,-151.0,0.00048,120]
[381150435,1756083044802,-949.174368,0.00048,120]
[381150436,1756083044811,-151.0,0.00048,120]
[381150437,1756083044821,-949.174368,0.00048,120]
[381150438,1756083044830,-949.174368,0.00048,120]
[381150439,1756083044839,-181.84,0.00048,120]
[381150440,1756083044849,-949.174368,0.00048,120]
[381150441,1756083044858,-567.367118,0.00048,120]
[381150442,1756083044868,-567.367118,0.00048,120]
[381150443,1756083044877,-567.367118,0.00048,120]
[381150444,1756083044886,-151.0,0.00048,120]
[381150445,1756083044896,-567.367118,0.00048,120]
[381150446,1756083044905,-151.0,0.00048,120]
[381150447,1756083044914,-151.0,0.00048,120]
[381150448,1756083044923,-151.0,0.00048,120]
[381150449,1756083044932,-423.645617,0.00048,120]
[381150450,1756083044942,-151.0,0.00048,120]
[381150451,1756083044951,-151.0,0.00048,120]
[381150452,1756083044961,-151.0,0.00048,120]
[381150453,1756083044971,-423.645617,0.00048,120]
[381150454,1756083044980,-423.645617,0.00048,120]
[381150455,1756083044990,-423.645617,0.00048,120]
[381150456,1756083044999,-402.399781,0.00048,120]
[381150457,1756083045008,-402.399781,0.00048,120]
[381150458,1756083045018,-402.399781,0.00048,120]
[381150459,1756083045028,-402.399781,0.00048,120]
[381150460,1756083045037,-151.0,0.00048,120]
[381150461,1756083045046,-566.895334,0.00048,120]
[381150462,1756083045057,-566.895334,0.00048,120]
[381150463,1756083045066,-566.895334,0.00048,120]
[381150464,1756083045076,-151.0,0.00048,120]
[381150465,1756083045085,-566.895334,0.00048,120]
[381150466,1756083045095,-166.0,0.00048,120]
[381150467,1756083045108,-280.269937,0.00048,120]
[381150468,1756083045118,-280.269937,0.00048,120]
[381150469,1756083045128,-280.269937,0.00048,120]
[381150470,1756083045139,-280.269937,0.00048,120]
[381150471,1756083045149,-151.0,0.00048,120]
[381150472,1756083045158,-151.0,0.00048,30]
[381150473,1756083045168,-151.0,0.00048,120]